{"text_format":"1","workbook":"xlsx","n_sheets":3,"sheets":["Menu","Stock Produits","Gestion Mot DE Passe"],"not_rendered":{"charts":0,"images":5,"macros":1,"external_links":1,"defined_names":79,"comments":0,"pivot_tables":0},"unopened":[],"bounds":{"document_bytes":16777216,"sheet_cells":100000,"rows_first":2000,"rows_last":500,"rows_between":2000,"halvings":0,"cell_chars":16384,"cell_head_chars":4096},"cells_cut":0,"cells_raw":0,"read":"whole","date_system":"1900"}

{"sheet":"Menu","index":0,"n_rows":15,"n_cols":1,"rows_kept":15,"cut":false,"hidden":false,"merged":[]}
[]
[]
[]
[]
[]
[]
[]
[]
[]
[]
[]
[]
[]
[]
["                                             "]

{"sheet":"Stock Produits","index":1,"n_rows":41,"n_cols":17,"rows_kept":41,"cut":false,"hidden":false,"merged":[]}
[null,null,"STOCK PRODUITS"]
[{"$f":"'[1]Listing Produits'!$A$7","v":"Référence Produit"},"<==  Lien classeur Produits"]
["Référence Produit","Lieu","Date maj","Qté","Qté min","Prix","Prix total","Clé"," ","Identifiant","Référence Produit","Lieu","date maj","Qté","Qté min","Prix","Prix total"]
["iD Pants S Plus 5531165140","LV 1","2020-04-14",220,5,0,0,{"$f":"Stock[[#This Row],[Référence Produit]]&Stock[[#This Row],[Lieu]]&Stock[[#This Row],[Date maj]]","v":"iD Pants S Plus 5531165140LV 143935"},null,"iD Pants S Plus 5531165140LV 1","iD Pants S Plus 5531165140","LV 1","2021-05-05",125,10]
["iD Pants S Plus 5531165140","LV 1","2020-04-18",235,10,2,470,{"$f":"Stock[[#This Row],[Référence Produit]]&Stock[[#This Row],[Lieu]]&Stock[[#This Row],[Date maj]]","v":"iD Pants S Plus 5531165140LV 143939"},null,"iD Slip S Plus 5630160140LV 1","iD Slip S Plus 5630160140","LV 1","2021-05-03",350,15]
["iD Slip S Plus 5630160140","LV 1","2020-04-11",12,15,3.11,37.32,{"$f":"Stock[[#This Row],[Référence Produit]]&Stock[[#This Row],[Lieu]]&Stock[[#This Row],[Date maj]]","v":"iD Slip S Plus 5630160140LV 143932"},null,"Care Gant de toilette 85310LV 5","Care Gant de toilette 85310","LV 5","2021-04-28",288,20,null,0]
["Care Gant de toilette 85310","LV 5","2021-04-28",288,20,null,0,{"$f":"Stock[[#This Row],[Référence Produit]]&Stock[[#This Row],[Lieu]]&Stock[[#This Row],[Date maj]]","v":"Care Gant de toilette 85310LV 544314"},null,"iD Pants M Super 5531275120LV 1","iD Pants M Super 5531275120","LV 1","2021-04-26",65,25,null,0]
["iD Slip S Plus 5630160140","LV 1","2021-04-26",189,15,null,0,{"$f":"Stock[[#This Row],[Référence Produit]]&Stock[[#This Row],[Lieu]]&Stock[[#This Row],[Date maj]]","v":"iD Slip S Plus 5630160140LV 144312"},null,"iD Pants L Super 5531375120DLV 1","iD Pants L Super 5531375120D","LV 1","2021-04-26",52,3]
["iD Slip S Plus 5630160140","LV 1","2021-04-29",411,15,null,0,{"$f":"Stock[[#This Row],[Référence Produit]]&Stock[[#This Row],[Lieu]]&Stock[[#This Row],[Date maj]]","v":"iD Slip S Plus 5630160140LV 144315"},null,"iD Care Lingettes Care 859006401LV 1","iD Care Lingettes Care 859006401","LV 1","2021-05-06",85,25]
["iD Pants M Super 5531275120","LV 1","2021-04-26",65,25,null,0,{"$f":"Stock[[#This Row],[Référence Produit]]&Stock[[#This Row],[Lieu]]&Stock[[#This Row],[Date maj]]","v":"iD Pants M Super 5531275120LV 144312"},null,"iD Slip M Plus 5610260280-01LV 1","iD Slip M Plus 5610260280-01","LV 1","2021-05-05",52,0]
["iD Pants L Super 5531375120D","LV 1","2021-04-26",52,3,null,null,{"$f":"Stock[[#This Row],[Référence Produit]]&Stock[[#This Row],[Lieu]]&Stock[[#This Row],[Date maj]]","v":"iD Pants L Super 5531375120DLV 144312"},null,"iD Slip L Plus 5610360280-03LV 1","iD Slip L Plus 5610360280-03","LV 1","2021-05-03",13,0]
["iD Slip S Plus 5630160140","LV 1","2021-05-03",350,15,null,null,{"$f":"Stock[[#This Row],[Référence Produit]]&Stock[[#This Row],[Lieu]]&Stock[[#This Row],[Date maj]]","v":"iD Slip S Plus 5630160140LV 144319"},null,"iD Slip M Extra Plus 5610270280-01LV 1","iD Slip M Extra Plus 5610270280-01","LV 1","2021-05-10",27,0,34.659999999999997]
["iD Pants S Plus 5531165140","LV 1","2021-05-05",125,10,null,null,{"$f":"Stock[[#This Row],[Référence Produit]]&Stock[[#This Row],[Lieu]]&Stock[[#This Row],[Date maj]]","v":"iD Pants S Plus 5531165140LV 144321"},null,"iD Slip S Super 5630175140LV 1","iD Slip S Super 5630175140","LV 1","2021-05-08",32,0]
["iD Care Lingettes Care 859006401","LV 1","2021-05-06",85,25,null,null,{"$f":"Stock[[#This Row],[Référence Produit]]&Stock[[#This Row],[Lieu]]&Stock[[#This Row],[Date maj]]","v":"iD Care Lingettes Care 859006401LV 144322"},null,"iD Slip L Extra Plus 5610370280-03LV 1","iD Slip L Extra Plus 5610370280-03","LV 1","2021-05-11",88,0]
["iD Slip M Plus 5610260280-01","LV 1","2021-05-05",52,0,null,null,{"$f":"Stock[[#This Row],[Référence Produit]]&Stock[[#This Row],[Lieu]]&Stock[[#This Row],[Date maj]]","v":"iD Slip M Plus 5610260280-01LV 144321"},null,"iD Slip M Super5630275280-01LV 1","iD Slip M Super5630275280-01","LV 1","2021-05-19",47,0]
["iD Slip L Plus 5610360280-03","LV 1","2021-05-03",13,0,null,null,{"$f":"Stock[[#This Row],[Référence Produit]]&Stock[[#This Row],[Lieu]]&Stock[[#This Row],[Date maj]]","v":"iD Slip L Plus 5610360280-03LV 144319"},null,"iD Slip L Super 5630375280-01LV 1","iD Slip L Super 5630375280-01","LV 1","2021-05-19",65,0]
["iD Slip M Extra Plus 5610270280-01","LV 1","2021-05-10",27,0,34.659999999999997,null,{"$f":"Stock[[#This Row],[Référence Produit]]&Stock[[#This Row],[Lieu]]&Stock[[#This Row],[Date maj]]","v":"iD Slip M Extra Plus 5610270280-01LV 144326"},null,"iD Slip XL Super 5630475140LV 1","iD Slip XL Super 5630475140","LV 1","2021-05-20",89,0]
["iD Slip S Super 5630175140","LV 1","2021-05-08",32,0,null,null,{"$f":"Stock[[#This Row],[Référence Produit]]&Stock[[#This Row],[Lieu]]&Stock[[#This Row],[Date maj]]","v":"iD Slip S Super 5630175140LV 144324"},null,"TRANSFIBRE 125g ABRICOTLV 1","TRANSFIBRE 125g ABRICOT","LV 1","2021-05-15",20,7,1]
["iD Slip L Extra Plus 5610370280-03","LV 1","2021-05-11",88,0,null,null,{"$f":"Stock[[#This Row],[Référence Produit]]&Stock[[#This Row],[Lieu]]&Stock[[#This Row],[Date maj]]","v":"iD Slip L Extra Plus 5610370280-03LV 144327"},null,"TRANSFIBRE 125g PRUNEAULV 1","TRANSFIBRE 125g PRUNEAU","LV 1","2021-05-15",5,0,1]
["iD Slip M Super5630275280-01","LV 1","2021-05-19",47,0,null,null,{"$f":"Stock[[#This Row],[Référence Produit]]&Stock[[#This Row],[Lieu]]&Stock[[#This Row],[Date maj]]","v":"iD Slip M Super5630275280-01LV 144335"},null,"TRANSFIBRE 125g RHUBARBELV 1","TRANSFIBRE 125g RHUBARBE","LV 1","2021-05-15",10,0,1]
["iD Slip L Super 5630375280-01","LV 1","2021-05-19",65,0,null,null,{"$f":"Stock[[#This Row],[Référence Produit]]&Stock[[#This Row],[Lieu]]&Stock[[#This Row],[Date maj]]","v":"iD Slip L Super 5630375280-01LV 144335"}]
["iD Slip XL Super 5630475140","LV 1","2021-05-20",89,0,null,null,{"$f":"Stock[[#This Row],[Référence Produit]]&Stock[[#This Row],[Lieu]]&Stock[[#This Row],[Date maj]]","v":"iD Slip XL Super 5630475140LV 144336"}]
["TRANSFIBRE 125g ABRICOT","LV 1","2021-05-09",30,10,1,null,{"$f":"Stock[[#This Row],[Référence Produit]]&Stock[[#This Row],[Lieu]]&Stock[[#This Row],[Date maj]]","v":"TRANSFIBRE 125g ABRICOTLV 144325"}]
["TRANSFIBRE 125g ABRICOT","LV 1","2021-05-13",25,9,1,null,{"$f":"Stock[[#This Row],[Référence Produit]]&Stock[[#This Row],[Lieu]]&Stock[[#This Row],[Date maj]]","v":"TRANSFIBRE 125g ABRICOTLV 144329"}]
["TRANSFIBRE 125g PRUNEAU","LV 1","2021-05-13",5,0,1,null,{"$f":"Stock[[#This Row],[Référence Produit]]&Stock[[#This Row],[Lieu]]&Stock[[#This Row],[Date maj]]","v":"TRANSFIBRE 125g PRUNEAULV 144329"}]
["TRANSFIBRE 125g RHUBARBE","LV 1","2021-05-13",10,0,1,null,{"$f":"Stock[[#This Row],[Référence Produit]]&Stock[[#This Row],[Lieu]]&Stock[[#This Row],[Date maj]]","v":"TRANSFIBRE 125g RHUBARBELV 144329"}]
["TRANSFIBRE 125g ABRICOT","LV 1","2021-05-13",300,8,1,null,{"$f":"Stock[[#This Row],[Référence Produit]]&Stock[[#This Row],[Lieu]]&Stock[[#This Row],[Date maj]]","v":"TRANSFIBRE 125g ABRICOTLV 144329"}]
["TRANSFIBRE 125g PRUNEAU","LV 1","2021-05-13",200,0,1,null,{"$f":"Stock[[#This Row],[Référence Produit]]&Stock[[#This Row],[Lieu]]&Stock[[#This Row],[Date maj]]","v":"TRANSFIBRE 125g PRUNEAULV 144329"}]
["TRANSFIBRE 125g RHUBARBE","LV 1","2021-05-13",100,0,1,null,{"$f":"Stock[[#This Row],[Référence Produit]]&Stock[[#This Row],[Lieu]]&Stock[[#This Row],[Date maj]]","v":"TRANSFIBRE 125g RHUBARBELV 144329"}]
["TRANSFIBRE 125g ABRICOT","LV 1","2021-05-14",250,8,1,null,{"$f":"Stock[[#This Row],[Référence Produit]]&Stock[[#This Row],[Lieu]]&Stock[[#This Row],[Date maj]]","v":"TRANSFIBRE 125g ABRICOTLV 144330"}]
["TRANSFIBRE 125g PRUNEAU","LV 1","2021-05-14",50,0,1,null,{"$f":"Stock[[#This Row],[Référence Produit]]&Stock[[#This Row],[Lieu]]&Stock[[#This Row],[Date maj]]","v":"TRANSFIBRE 125g PRUNEAULV 144330"}]
["TRANSFIBRE 125g RHUBARBE","LV 1","2021-05-14",100,0,1,null,{"$f":"Stock[[#This Row],[Référence Produit]]&Stock[[#This Row],[Lieu]]&Stock[[#This Row],[Date maj]]","v":"TRANSFIBRE 125g RHUBARBELV 144330"}]
["TRANSFIBRE 125g ABRICOT","LV 1","2021-05-15",20,7,1,null,{"$f":"Stock[[#This Row],[Référence Produit]]&Stock[[#This Row],[Lieu]]&Stock[[#This Row],[Date maj]]","v":"TRANSFIBRE 125g ABRICOTLV 144331"}]
["TRANSFIBRE 125g PRUNEAU","LV 1","2021-05-15",5,0,1,null,{"$f":"Stock[[#This Row],[Référence Produit]]&Stock[[#This Row],[Lieu]]&Stock[[#This Row],[Date maj]]","v":"TRANSFIBRE 125g PRUNEAULV 144331"}]
["TRANSFIBRE 125g RHUBARBE","LV 1","2021-05-15",10,0,1,null,{"$f":"Stock[[#This Row],[Référence Produit]]&Stock[[#This Row],[Lieu]]&Stock[[#This Row],[Date maj]]","v":"TRANSFIBRE 125g RHUBARBELV 144331"}]
["TRANSFIBRE 125g ABRICOT","LV 1","2021-05-13",200,6,1,null,{"$f":"Stock[[#This Row],[Référence Produit]]&Stock[[#This Row],[Lieu]]&Stock[[#This Row],[Date maj]]","v":"TRANSFIBRE 125g ABRICOTLV 144329"}]
["TRANSFIBRE 125g PRUNEAU","LV 1","2021-05-13",50,0,1,null,{"$f":"Stock[[#This Row],[Référence Produit]]&Stock[[#This Row],[Lieu]]&Stock[[#This Row],[Date maj]]","v":"TRANSFIBRE 125g PRUNEAULV 144329"}]
["TRANSFIBRE 125g RHUBARBE","LV 1","2021-05-13",100,0,1,null,{"$f":"Stock[[#This Row],[Référence Produit]]&Stock[[#This Row],[Lieu]]&Stock[[#This Row],[Date maj]]","v":"TRANSFIBRE 125g RHUBARBELV 144329"}]
["TRANSFIBRE 125g ABRICOT","LV 1","2021-05-13",700,6,1,null,{"$f":"Stock[[#This Row],[Référence Produit]]&Stock[[#This Row],[Lieu]]&Stock[[#This Row],[Date maj]]","v":"TRANSFIBRE 125g ABRICOTLV 144329"}]
["TRANSFIBRE 125g PRUNEAU","LV 1","2021-05-13",600,0,1,null,{"$f":"Stock[[#This Row],[Référence Produit]]&Stock[[#This Row],[Lieu]]&Stock[[#This Row],[Date maj]]","v":"TRANSFIBRE 125g PRUNEAULV 144329"}]
["TRANSFIBRE 125g RHUBARBE","LV 1","2021-05-13",500,0,1,null,{"$f":"Stock[[#This Row],[Référence Produit]]&Stock[[#This Row],[Lieu]]&Stock[[#This Row],[Date maj]]","v":"TRANSFIBRE 125g RHUBARBELV 144329"}]

{"sheet":"Gestion Mot DE Passe","index":2,"n_rows":3,"n_cols":4,"rows_kept":3,"cut":false,"hidden":true,"merged":[]}
["Users","Passworld","Niveau","Date"]
["Users","Passworld","Niveau","Date"]
["Admin","Admin",1,"2016-02-02"]